bitfinex/quotes_BTCUSD_20230118
["timestamp","ask_amount","ask_price","bid_price","bid_amount"]
[1674072666478,0.01582753,20918.0,20917.0,2.03083398]
[1674072666765,0.02182753,20918.0,20917.0,2.06283398]
[1674072667028,0.02182753,20918.0,20917.0,2.53583534]
[1674072667325,0.02182753,20918.0,20917.0,2.29191229]
[1674072667541,0.02182753,20918.0,20917.0,2.28341229]
[1674072668655,0.02182753,20918.0,20917.0,2.23847631]
[1674072669206,0.02182753,20918.0,20917.0,2.009398]
[1674072669486,0.02182753,20918.0,20917.0,2.20239237]
[1674072670595,0.02182753,20918.0,20917.0,2.18739237]
[1674072671424,0.02182753,20918.0,20917.0,1.97489237]
[1674072672002,0.02182753,20918.0,20917.0,2.05229237]
[1674072672266,0.02182753,20918.0,20917.0,2.20229237]
[1674072672793,0.02182753,20918.0,20917.0,2.24722835]
[1674072673575,0.02182753,20918.0,20917.0,2.05423398]
[1674072673853,0.01019177,20919.0,20918.0,0.01014679]
[1674072674107,0.01019177,20919.0,20918.0,3.26230862]
[1674072674381,0.01019177,20919.0,20918.0,3.23060274]
[1674072675044,0.01019177,20919.0,20918.0,2.90962586]
[1674072675332,0.00855918,20922.0,20918.0,2.31327529]
[1674072675608,0.00855918,20922.0,20921.0,0.0774]
[1674072675879,0.00855918,20922.0,20921.0,2.002099]
[1674072676159,0.00855918,20922.0,20921.0,2.59837334]
[1674072676440,0.00855918,20922.0,20921.0,2.302099]
[1674072676723,0.04355918,20922.0,20921.0,2.35003498]
[1674072676994,0.00855918,20922.0,20921.0,2.65180932]
[1674072677274,1.8e-07,20922.0,20921.0,2.65180932]
[1674072677577,0.01195329,20925.0,20922.0,0.0775]
[1674072677860,0.01195329,20925.0,20923.0,2.138968]
[1674072678125,0.01195329,20925.0,20924.0,0.614025]
[1674072678396,0.00695329,20925.0,20924.0,1.86613934]
[1674072678915,0.01095329,20925.0,20924.0,1.86613934]
[1674072678921,0.00695329,20925.0,20924.0,2.21103628]
[1674072679194,0.01095329,20925.0,20924.0,2.25597226]
[1674072679468,0.01095329,20925.0,20924.0,1.98857532]
[1674072679469,0.00695329,20925.0,20924.0,1.98857532]
[1674072679745,0.00695329,20925.0,20924.0,2.03457532]
[1674072679746,0.00400029,20925.0,20924.0,2.03457532]
[1674072680038,0.00400029,20925.0,20924.0,2.21622098]
[1674072680336,0.00400029,20925.0,20924.0,2.45594408]
[1674072680623,0.01195329,20927.0,20925.0,0.15]
[1674072680932,0.01195329,20927.0,20926.0,2.148786]
[1674072681230,0.01195329,20927.0,20926.0,2.461513]
[1674072681827,0.01195329,20927.0,20926.0,2.453013]
[1674072682102,0.01595329,20927.0,20926.0,2.503013]
[1674072682927,0.01195329,20928.0,20926.0,2.503013]
[1674072682928,0.01113955,20931.0,20927.0,0.493798]
[1674072683213,0.01113955,20931.0,20928.0,1.17412021]
[1674072683498,0.01113955,20931.0,20929.0,0.021216]
[1674072684032,0.01113955,20931.0,20929.0,2.30897695]
[1674072684063,0.01113955,20931.0,20930.0,0.04493598]
[1674072684336,0.01113955,20931.0,20930.0,1.54071498]
[1674072684616,0.01113955,20931.0,20930.0,1.47171498]
[1674072684893,0.01113955,20931.0,20930.0,1.426779]
[1674072685615,0.01113955,20931.0,20930.0,1.66461158]
[1674072685951,0.01113955,20931.0,20930.0,1.56861158]
[1674072686221,0.01113955,20931.0,20930.0,1.66561158]
[1674072690866,0.01113955,20931.0,20930.0,1.71054756]
[1674072691151,0.01113955,20931.0,20930.0,1.86103335]
[1674072691426,0.01113955,20931.0,20930.0,1.84425864]
[1674072691695,0.01113955,20931.0,20930.0,1.93725864]
[1674072691998,0.01113955,20931.0,20930.0,1.84425864]
[1674072692536,0.01113955,20931.0,20930.0,1.93725864]
[1674072693378,0.01113955,20931.0,20930.0,1.92875864]
[1674072693650,0.01113955,20931.0,20930.0,1.83575864]
[1674072693915,0.01113955,20931.0,20930.0,1.92875864]
[1674072694470,0.01113955,20931.0,20930.0,1.85125864]
[1674072695330,0.01113955,20931.0,20930.0,1.47375864]
[1674072696169,0.01113955,20931.0,20930.0,1.55955864]
[1674072696801,0.01113955,20931.0,20930.0,1.55105864]
[1674072697667,0.01113955,20931.0,20930.0,1.27882266]
[1674072697941,0.01113955,20931.0,20930.0,1.26610966]
[1674072698494,0.01113955,20931.0,20930.0,1.18582166]
[1674072699277,0.01113955,20931.0,20930.0,1.17310966]
[1674072699558,0.01213955,20931.0,20930.0,1.40810966]
[1674072699848,0.01113955,20931.0,20930.0,1.63582166]
[1674072700116,0.05020724,20935.0,20930.0,1.63582166]
[1674072700117,0.04950665,20935.0,20931.0,0.15]
[1674072700409,0.04950665,20935.0,20932.0,1.62751697]
[1674072701223,0.04950665,20935.0,20933.0,0.11791092]
[1674072701503,0.04950665,20935.0,20934.0,0.955382]
[1674072701901,0.00179941,20935.0,20934.0,0.9560867]
[1674072702369,0.00179941,20935.0,20934.0,0.4783957]
[1674072702605,0.00879941,20935.0,20934.0,0.955382]
[1674072702843,0.00179941,20935.0,20934.0,0.955382]
[1674072703507,0.00879941,20935.0,20934.0,0.484691]
[1674072703787,0.16153941,20935.0,20934.0,0.484691]
[1674072704424,0.00879941,20935.0,20934.0,0.484691]
[1674072704648,0.00879941,20935.0,20934.0,0.007]
[1674072704886,0.32931041,20935.0,20934.0,0.007]
[1674072705322,0.92881041,20935.0,20934.0,0.007]
[1674072705545,1.96164641,20935.0,20934.0,0.007]
[1674072705807,2.11164641,20935.0,20934.0,0.007]
[1674072706057,1.96164641,20935.0,20934.0,0.007]
[1674072706513,2.11164641,20935.0,20934.0,0.007]
[1674072707009,1.96164641,20935.0,20934.0,0.007]
[1674072707265,2.11164641,20935.0,20934.0,0.007]
[1674072707515,2.11164641,20935.0,20927.0,0.477834]
[1674072707516,0.00363276,20933.0,20927.0,0.477834]
[1674072707747,0.0775,20928.0,20926.0,0.477855]
[1674072707988,0.315425,20927.0,20926.0,0.477855]
[1674072708233,0.0775,20928.0,20926.0,0.477855]
[1674072708486,0.312527,20927.0,20926.0,0.955729]
[1674072708960,0.0775,20928.0,20926.0,0.955729]
[1674072709182,0.09,20927.0,20926.0,0.955729]
[1674072709895,0.0775,20928.0,20925.0,0.71119651]
[1674072710125,0.1675,20928.0,20925.0,0.71119651]
[1674072710372,0.320101,20927.0,20925.0,0.71119651]
[1674072710621,0.09,20927.0,20925.0,0.71119651]
[1674072710928,0.09,20927.0,20925.0,1.18909351]
[1674072711594,0.0775,20928.0,20925.0,1.18909351]
[1674072711830,0.0945,20928.0,20925.0,1.18909351]
[1674072712058,0.325549,20927.0,20925.0,0.23331751]
[1674072712334,0.340356,20926.0,20924.0,0.477902]
[1674072712810,0.304894,20925.0,20924.0,0.477902]
[1674072713042,0.79950051,20928.0,20924.0,0.477902]
[1674072713292,0.008,20926.0,20924.0,0.67222297]
[1674072713530,0.99327051,20928.0,20924.0,0.477902]
[1674072713785,0.99327051,20928.0,20924.0,0.67222297]
[1674072713786,0.79950051,20928.0,20924.0,0.67222297]
[1674072714011,0.327154,20927.0,20924.0,0.477902]
[1674072714245,0.338892,20926.0,20924.0,0.477902]
[1674072714465,0.331816,20925.0,20924.0,0.477902]
[1674072714672,0.79950051,20928.0,20924.0,0.477902]
[1674072714900,0.017,20927.0,20924.0,0.67222297]
[1674072715155,0.79950051,20928.0,20924.0,0.477902]
[1674072715385,0.09,20925.0,20924.0,0.67222297]
[1674072715624,0.79950051,20928.0,20923.0,1.21161471]
[1674072715625,0.477854,20927.0,20923.0,1.21161471]
[1674072715847,0.79950051,20928.0,20923.0,1.21161471]
[1674072716098,0.09,20927.0,20923.0,1.40593568]
[1674072716306,0.79950151,20928.0,20923.0,1.40593568]
[1674072716529,0.09,20925.0,20923.0,1.40593568]
[1674072716743,0.09,20925.0,20923.0,1.21161471]
[1674072717718,0.79950151,20928.0,20923.0,1.21161471]
[1674072717935,0.017,20927.0,20923.0,1.40593568]
[1674072718417,0.017,20927.0,20923.0,1.21161471]
[1674072719066,0.79950151,20928.0,20923.0,1.21161471]
[1674072719339,0.017,20927.0,20923.0,1.40593568]
[1674072720423,0.017,20927.0,20923.0,1.21161471]
[1674072723476,0.017,20927.0,20924.0,0.70542909]
[1674072723742,0.017,20927.0,20925.0,1.523321]
[1674072724049,0.017,20927.0,20926.0,0.3]
[1674072724318,0.017,20927.0,20926.0,1.418475]
[1674072724578,0.25793933,20932.0,20926.0,1.418475]
[1674072724872,0.04866608,20932.0,20927.0,0.42309463]
[1674072725131,0.04866608,20932.0,20928.0,2.11831797]
[1674072725663,0.04866608,20932.0,20928.0,2.40559997]
[1674072725665,0.00363276,20933.0,20928.0,2.40559997]
[1674072725952,0.00363276,20933.0,20929.0,0.012714]
[1674072726233,0.008,20932.0,20930.0,1.433334]
[1674072726511,0.095,20932.0,20930.0,1.433334]
[1674072727385,0.087,20932.0,20930.0,1.433334]
[1674072727655,0.09063276,20933.0,20931.0,0.21222023]
[1674072727942,0.09063276,20933.0,20932.0,0.477737]
[1674072727943,0.00363276,20933.0,20932.0,0.477737]
[1674072728229,0.00363276,20933.0,20932.0,0.955474]
[1674072729359,0.09063276,20933.0,20932.0,0.955474]
[1674072730797,0.00363276,20933.0,20932.0,0.955474]
[1674072731076,0.09063276,20933.0,20932.0,0.477737]
[1674072731351,0.00363276,20933.0,20932.0,0.477737]
[1674072731618,0.41950376,20933.0,20932.0,0.477737]
[1674072732156,0.09063276,20933.0,20932.0,0.477737]
[1674072732700,0.09063276,20933.0,20932.0,0.95539845]
[1674072735110,0.09063276,20933.0,20932.0,0.96810345]
[1674072735389,0.09063276,20933.0,20932.0,1.41810345]
[1674072737053,0.09063276,20933.0,20932.0,1.11810345]
[1674072737366,0.09063276,20933.0,20932.0,0.95539845]
[1674072742412,0.09063276,20933.0,20932.0,1.52757489]
[1674072742690,0.09063276,20933.0,20932.0,1.60447489]
[1674072742963,0.09063276,20933.0,20932.0,1.60062205]
[1674072743268,0.09063276,20933.0,20932.0,1.75062205]
[1674072744899,0.09063276,20933.0,20932.0,1.70568607]
[1674072745727,0.09063276,20933.0,20932.0,1.75062205]
[1674072747676,0.09063276,20933.0,20932.0,1.22372205]
[1674072747972,0.09063276,20933.0,20932.0,1.16608107]
[1674072749350,0.09063276,20933.0,20932.0,0.95539845]
[1674072749897,0.09063276,20933.0,20932.0,0.47766145]
[1674072750654,0.40316876,20933.0,20932.0,0.47766145]
[1674072750932,0.41273876,20933.0,20931.0,0.47774]
[1674072751206,0.331648,20932.0,20931.0,0.47774]
[1674072751548,0.09063276,20933.0,20931.0,0.47774]
[1674072752092,0.313125,20932.0,20931.0,0.47774]
[1674072752368,0.019,20932.0,20931.0,0.47874]
[1674072752631,0.00363276,20933.0,20931.0,0.47774]
[1674072752901,0.02263276,20933.0,20931.0,0.9565]
[1674072753455,0.299304,20932.0,20931.0,0.001]
[1674072753999,0.299304,20932.0,20930.0,0.2498605]
[1674072754264,0.48807708,20931.0,20930.0,0.2498605]
[1674072754577,0.48807708,20931.0,20929.0,0.025]
[1674072754578,1.52109708,20931.0,20929.0,0.025]
[1674072754866,0.333023,20930.0,20929.0,0.025]
[1674072755140,0.410123,20930.0,20929.0,0.025]
[1674072755453,1.365689,20930.0,20929.0,0.025]
[1674072755726,0.887906,20930.0,20929.0,0.025]
[1674072756543,1.288589,20930.0,20929.0,0.025]
[1674072756831,0.810806,20930.0,20929.0,0.025]
[1674072757113,0.900806,20930.0,20929.0,0.025]
[1674072757392,0.810806,20930.0,20929.0,0.025]
[1674072757668,0.900806,20930.0,20929.0,0.025]
[1674072758037,0.810806,20930.0,20929.0,0.025]
[1674072758259,0.900806,20930.0,20929.0,0.025]
[1674072758532,0.423023,20930.0,20929.0,0.025]
[1674072759351,0.423023,20930.0,20929.0,0.02491106]
[1674072760771,0.423023,20930.0,20929.0,0.02528606]
[1674072761059,0.09,20930.0,20929.0,0.02528606]
[1674072761336,0.09,20930.0,20929.0,0.50271606]
[1674072761602,0.09,20930.0,20929.0,0.02491106]
[1674072762162,0.09,20930.0,20929.0,0.50271606]
[1674072762163,0.396998,20930.0,20929.0,0.50271606]
[1674072762729,0.09,20930.0,20929.0,0.02491106]
[1674072763008,0.409868,20930.0,20929.0,0.02491106]
[1674072763569,0.47606182,20930.0,20929.0,0.02491106]
[1674072764885,0.95384482,20930.0,20929.0,0.02491106]
[1674072765471,1.365434,20930.0,20929.0,0.02491106]
[1674072765751,1.47973555,20930.0,20929.0,0.02491106]
[1674072766064,1.38973555,20930.0,20929.0,0.02491106]
[1674072766345,1.47973555,20930.0,20929.0,0.02491106]
[1674072766622,1.442934,20930.0,20929.0,0.02491106]
[1674072766899,1.06830628,20930.0,20929.0,0.02491106]
[1674072767166,1.18260783,20930.0,20929.0,0.02491106]
[1674072767466,0.59052328,20930.0,20929.0,0.02491106]
[1674072767744,1.15930628,20930.0,20929.0,0.02491106]
[1674072768026,1.27360783,20930.0,20929.0,0.02491106]
[1674072768901,1.75139083,20930.0,20929.0,0.02491106]
[1674072769176,1.92301884,20930.0,20929.0,0.02491106]
[1674072769450,1.72986356,20930.0,20929.0,0.02491106]
[1674072769723,1.443934,20930.0,20929.0,0.02491106]
[1674072769996,0.488368,20930.0,20929.0,0.02491106]
[1674072770307,0.410868,20930.0,20929.0,0.02491106]
[1674072771923,0.410868,20930.0,20929.0,0.50271606]
[1674072772210,0.091,20930.0,20929.0,0.98052106]
[1674072772776,0.091,20930.0,20929.0,1.22780938]
[1674072775533,0.091,20930.0,20929.0,0.75000438]
[1674072776141,0.091,20930.0,20929.0,1.22780938]
[1674072776414,0.091,20930.0,20929.0,0.75000438]
[1674072777776,0.091,20930.0,20929.0,1.22780938]
[1674072778608,0.091,20930.0,20929.0,0.75000438]
[1674072779780,0.091,20930.0,20929.0,0.02491106]
[1674072780059,0.417788,20930.0,20929.0,0.02491106]
[1674072780338,0.56767621,20930.0,20929.0,0.02491106]
[1674072780623,0.56767621,20930.0,20929.0,0.01982519]
[1674072781183,1.04545921,20930.0,20929.0,0.01982519]
[1674072782246,1.79565964,20930.0,20929.0,0.01982519]
[1674072782251,2.1590892,20930.0,20929.0,0.01982519]
[1674072782576,2.15901111,20930.0,20929.0,0.01982519]
[1674072782840,1.74649489,20930.0,20929.0,0.01982519]
[1674072783106,1.24548843,20930.0,20929.0,0.01982519]
[1674072783366,0.76770543,20930.0,20929.0,0.01982519]
[1674072783628,0.85870543,20930.0,20929.0,0.01982519]
[1674072784413,0.78120543,20930.0,20929.0,0.01982519]
[1674072784709,0.59920543,20930.0,20929.0,0.01982519]
[1674072786064,0.68920543,20930.0,20929.0,0.01982519]
[1674072786614,0.80342889,20930.0,20929.0,0.01982519]
[1674072786890,0.68920543,20930.0,20929.0,0.01982519]
[1674072787166,0.416788,20930.0,20929.0,0.01982519]
[1674072787500,0.09,20930.0,20929.0,0.01982519]
[1674072787778,0.402691,20930.0,20929.0,0.01982519]
[1674072788062,0.09,20930.0,20929.0,0.01982519]
[1674072789374,0.09,20930.0,20929.0,0.97543519]
[1674072792803,0.09,20930.0,20929.0,0.49763019]
[1674072793082,0.20422346,20930.0,20929.0,0.01982519]
[1674072793640,0.69048147,20930.0,20929.0,0.01982519]
[1674072793945,0.69268347,20930.0,20929.0,0.01982519]
[1674072794544,1.28479189,20930.0,20929.0,0.01982519]
[1674072794824,0.8072022,20930.0,20929.0,0.01982519]
[1674072795115,0.52137526,20930.0,20929.0,0.01982519]
[1674072795390,0.43137526,20930.0,20929.0,0.01982519]
[1674072795673,0.20554326,20930.0,20929.0,0.49763019]
[1674072795960,0.6403404,20931.0,20929.0,0.49763019]
[1674072795961,0.52633478,20931.0,20929.0,0.49763019]
[1674072796244,0.09,20930.0,20929.0,0.49763019]
[1674072796714,0.18,20930.0,20929.0,0.49763019]
[1674072796716,0.09,20930.0,20929.0,1.17108896]
[1674072796999,0.00011708,20931.0,20929.0,1.18380396]
[1674072797285,0.00011708,20931.0,20929.0,1.17108896]
[1674072797561,0.00011708,20931.0,20930.0,0.150163]
[1674072797936,0.09,20931.0,20930.0,1.093016]
[1674072798109,0.11454326,20932.0,20930.0,1.093016]
[1674072798414,0.28636458,20933.0,20930.0,1.093016]
[1674072798686,0.017,20931.0,20930.0,1.093016]
[1674072798960,0.106,20931.0,20930.0,1.093016]
[1674072799505,0.106,20931.0,20930.0,0.955566]
[1674072800901,0.11454326,20932.0,20930.0,0.955566]
[1674072801197,0.19615136,20932.0,20930.0,0.955566]
[1674072801471,0.20354326,20931.0,20930.0,0.955566]
[1674072801745,0.20354326,20931.0,20930.0,0.477783]
[1674072802258,0.44265026,20931.0,20929.0,0.49762419]
[1674072802259,0.61447158,20931.0,20929.0,0.01982519]
[1674072802562,0.44180479,20930.0,20929.0,0.01982519]
[1674072802849,0.91958779,20930.0,20929.0,0.01982519]
[1674072803131,0.73785014,20930.0,20929.0,0.01982519]
[1674072803448,0.90967146,20930.0,20929.0,0.01982519]
[1674072803718,0.79517167,20930.0,20929.0,0.01982519]
[1674072803996,1.50150355,20930.0,20929.0,0.01982519]
[1674072804276,1.59150355,20930.0,20929.0,0.0197359]
[1674072804562,0.8176752,20930.0,20929.0,0.0197359]
[1674072804839,0.70362776,20930.0,20929.0,0.0197359]
[1674072805138,1.06690932,20930.0,20929.0,0.0197359]
[1674072805394,1.22459877,20930.0,20929.0,0.0197359]
[1674072805885,1.31559877,20930.0,20929.0,0.0197359]
[1674072806156,1.61952105,20930.0,20929.0,0.0197359]
[1674072806445,2.09730405,20930.0,20929.0,0.0197359]
[1674072806730,3.09439916,20930.0,20929.0,0.0197359]
[1674072807000,3.09491979,20930.0,20929.0,0.0197359]
[1674072807565,2.13971747,20930.0,20929.0,0.0197359]
[1674072807861,1.8505828,20930.0,20929.0,0.0197359]
[1674072808147,1.2817998,20930.0,20929.0,0.0197359]
[1674072808415,1.5445648,20930.0,20929.0,0.0197359]
[1674072808724,1.2817998,20930.0,20929.0,0.0197359]
[1674072809021,1.27035309,20930.0,20929.0,0.0197359]
[1674072809292,1.83913609,20930.0,20929.0,0.0197359]
[1674072809565,2.88849282,20930.0,20929.0,0.0197359]
[1674072809848,2.22266407,20930.0,20929.0,0.0197359]
[1674072810164,2.88847731,20930.0,20929.0,0.0197359]
[1674072810440,2.79747731,20930.0,20929.0,0.0197359]
[1674072810719,2.13166407,20930.0,20929.0,0.0197359]
[1674072811318,3.45697475,20930.0,20929.0,0.0197359]
[1674072811537,3.1706861,20930.0,20929.0,0.0197359]
[1674072812374,3.0796861,20930.0,20929.0,0.0197359]
[1674072813185,3.45690709,20930.0,20929.0,0.0197359]
[1674072813458,3.0796861,20930.0,20929.0,0.0197359]
[1674072813698,3.1706861,20930.0,20929.0,0.0197359]
[1674072814305,3.1706861,20930.0,20924.0,1.19916351]
[1674072814306,0.01029005,20928.0,20925.0,0.477892]
[1674072814591,0.11447009,20926.0,20924.0,0.4779]
[1674072814847,0.33965,20925.0,20924.0,0.4779]
[1674072815111,0.28617523,20927.0,20924.0,0.4779]
[1674072815384,0.28617523,20927.0,20924.0,0.47792]
[1674072815643,0.332429,20926.0,20924.0,0.47792]
[1674072815913,0.330566,20925.0,20924.0,0.47792]
[1674072816396,0.09,20926.0,20924.0,0.47792]
[1674072816646,0.31615,20925.0,20924.0,0.47792]
[1674072816901,0.26850625,20927.0,20924.0,0.47792]
[1674072817159,0.09,20925.0,20924.0,0.47792]
[1674072818502,0.08991217,20925.0,20923.0,0.48416962]
[1674072819447,0.95363675,20927.0,20923.0,0.48416962]
[1674072819662,0.089,20925.0,20923.0,0.67849059]
[1674072819919,0.089,20925.0,20923.0,0.48416962]
[1674072820185,0.089,20925.0,20923.0,0.00624262]
[1674072820449,0.343657,20924.0,20923.0,0.00624262]
[1674072821496,0.343657,20924.0,20923.0,0.48418462]
[1674072821752,0.29294585,20925.0,20923.0,0.00624262]
[1674072822009,0.312594,20924.0,20923.0,0.00624262]
[1674072822842,0.402594,20924.0,20923.0,0.00624262]
[1674072826114,0.61430939,20924.0,20923.0,0.00624262]
[1674072826678,0.402594,20924.0,20923.0,0.00624262]
[1674072828302,0.880514,20924.0,20923.0,0.00624262]
[1674072830264,1.358434,20924.0,20923.0,0.00624262]
[1674072830535,0.880514,20924.0,20923.0,0.00624262]
[1674072831622,1.358434,20924.0,20923.0,0.00624262]
[1674072832731,1.69876503,20924.0,20923.0,0.00624262]
[1674072833503,1.22084503,20924.0,20923.0,0.00624262]
[1674072833505,1.69876503,20924.0,20923.0,0.00624262]
[1674072833777,0.957614,20924.0,20923.0,0.00624262]
[1674072834081,0.402594,20924.0,20923.0,0.00624262]
[1674072834391,0.09,20924.0,20923.0,0.26988742]
[1674072835192,0.09,20924.0,20923.0,0.74782942]
[1674072835486,0.09,20924.0,20923.0,0.76056542]
[1674072835773,0.09,20924.0,20923.0,0.74782942]
[1674072836051,0.09,20924.0,20923.0,1.23850742]
[1674072836622,0.09,20924.0,20923.0,1.22577142]
[1674072836929,0.09,20924.0,20923.0,0.74782942]
[1674072837213,0.09,20924.0,20923.0,0.00624262]
[1674072837530,0.09,20924.0,20923.0,0.48418462]
[1674072839809,0.09,20924.0,20923.0,0.00624262]
[1674072840356,0.09,20924.0,20923.0,0.96212662]
[1674072840624,0.09,20924.0,20923.0,0.48418462]
[1674072841170,0.09,20924.0,20923.0,0.00624262]
[1674072841448,0.419311,20924.0,20923.0,0.00124262]
[1674072841725,0.53378109,20924.0,20923.0,0.00124262]
[1674072842026,3.30212653,20924.0,20923.0,0.00124262]
[1674072842307,3.60212653,20924.0,20923.0,0.00124262]
[1674072842548,4.18865162,20924.0,20922.0,0.02435794]
[1674072842878,1.29052496,20923.0,20922.0,0.02435794]
[1674072843151,2.72564652,20923.0,20922.0,0.02435794]
[1674072843433,2.34679355,20923.0,20922.0,0.02435794]
[1674072843711,2.57564652,20923.0,20922.0,0.02435794]
[1674072844001,2.24640896,20923.0,20922.0,0.02435794]
[1674072844277,2.07477566,20923.0,20922.0,0.02435794]
[1674072844584,2.73741593,20923.0,20922.0,0.02435794]
[1674072844847,3.63074358,20923.0,20922.0,0.02435794]
[1674072845175,4.00859534,20923.0,20922.0,0.02435794]
[1674072845411,4.20534577,20923.0,20922.0,0.02435794]
[1674072845685,4.11334577,20923.0,20922.0,0.02435794]
[1674072846272,4.20534577,20923.0,20922.0,0.02435794]
[1674072846558,3.72274358,20923.0,20922.0,0.02435794]
[1674072846833,3.7067516,20923.0,20922.0,0.02435794]
[1674072847105,3.7152516,20923.0,20922.0,0.02435794]
[1674072847378,4.05908215,20923.0,20922.0,0.02435794]
[1674072847656,0.252219,20921.0,20920.0,0.00657668]
[1674072847931,1.79732218,20921.0,20920.0,0.00657668]
[1674072848213,3.76216024,20921.0,20920.0,0.00657668]
[1674072849037,3.46216024,20921.0,20920.0,0.00657668]
[1674072849318,3.42046248,20921.0,20920.0,0.00657668]
[1674072849555,3.29186313,20921.0,20920.0,0.00657668]
[1674072849864,3.59186313,20921.0,20920.0,0.00657668]
[1674072850631,3.14186313,20921.0,20920.0,0.00657668]
[1674072850635,2.91321134,20921.0,20920.0,0.00657668]
[1674072850918,3.44186313,20921.0,20920.0,0.00657668]
[1674072851191,4.32658416,20921.0,20920.0,0.00657668]
[1674072851466,4.83340206,20921.0,20920.0,0.00657668]
[1674072851740,4.42666903,20921.0,20920.0,0.00657668]
[1674072852009,3.74845048,20921.0,20920.0,0.00657668]
[1674072852280,3.14184228,20921.0,20920.0,0.00657668]
[1674072852573,2.82119049,20921.0,20920.0,0.00657668]
[1674072852852,2.91319049,20921.0,20920.0,0.00657668]
[1674072853151,2.82119049,20921.0,20920.0,0.00657668]
[1674072853415,2.93541579,20921.0,20920.0,0.00657668]
[1674072854254,3.23541579,20921.0,20920.0,0.00657668]
[1674072854534,2.91319049,20921.0,20920.0,0.00657668]
[1674072854807,3.44184228,20921.0,20920.0,0.00657668]
[1674072855427,3.36504228,20921.0,20920.0,0.00657668]
[1674072855699,3.13639049,20921.0,20920.0,0.00657668]
[1674072856301,3.36504228,20921.0,20920.0,0.00657668]
[1674072856583,3.19366248,20921.0,20920.0,0.00657668]
[1674072856856,3.87299288,20921.0,20920.0,0.00657668]
[1674072857196,3.36495416,20921.0,20920.0,0.00657668]
[1674072857366,3.19366248,20921.0,20920.0,0.00657668]
[1674072857637,3.10166248,20921.0,20920.0,0.00657668]
[1674072857932,4.08988453,20921.0,20920.0,0.00657668]
[1674072858474,0.00263163,20919.0,20917.0,0.00624262]
[1674072858747,1.62463014,20918.0,20917.0,0.00624262]
[1674072859029,1.93126914,20918.0,20917.0,0.00624262]
[1674072859325,1.93126914,20918.0,20915.0,0.00624262]
[1674072859326,2.64925665,20918.0,20915.0,0.00624262]
[1674072859618,0.59139077,20916.0,20915.0,0.00624262]
[1674072859890,5.12778659,20916.0,20915.0,0.00624262]
[1674072860154,5.76838998,20916.0,20915.0,0.00624262]
[1674072860700,5.69088998,20916.0,20915.0,0.00624262]
[1674072860979,6.03472053,20916.0,20915.0,0.00624262]
[1674072861258,5.69088998,20916.0,20915.0,0.00624262]
[1674072861533,0.15,20915.0,20914.0,0.00624262]
[1674072861824,3.85989962,20915.0,20914.0,0.00624262]
[1674072862097,4.01489962,20915.0,20914.0,0.00624262]
[1674072862368,3.72968679,20915.0,20914.0,0.00624262]
[1674072862665,0.01090942,20911.0,20906.0,0.00807262]
[1674072862942,0.79593369,20910.0,20906.0,0.00807262]
[1674072863226,0.80059269,20909.0,20906.0,0.00807262]
[1674072863527,1.75711669,20909.0,20906.0,0.00807262]
[1674072863860,2.43264692,20909.0,20906.0,0.00807262]
[1674072864137,2.65695117,20909.0,20906.0,0.00807262]
[1674072864407,2.44895117,20909.0,20906.0,0.00807262]
[1674072864981,2.84095117,20909.0,20906.0,0.00807262]
[1674072865258,2.35695117,20909.0,20906.0,0.00807262]
[1674072866115,2.35695117,20909.0,20906.0,0.23295539]
[1674072866116,1.98142094,20909.0,20906.0,0.23295539]
[1674072866661,1.98142094,20909.0,20906.0,0.00807262]
[1674072867804,2.07342094,20909.0,20906.0,0.00807262]
[1674072868634,1.98142094,20909.0,20906.0,0.00807262]
[1674072869205,2.07342094,20909.0,20906.0,0.00807262]
[1674072869484,1.98142094,20909.0,20906.0,0.00807262]
[1674072869755,2.32047798,20909.0,20906.0,0.00807262]
[1674072870032,2.22847798,20909.0,20906.0,0.00807262]
[1674072870331,2.69797798,20909.0,20906.0,0.00807262]
[1674072870614,2.30597798,20909.0,20906.0,0.00807262]
[1674072870890,1.75711669,20909.0,20906.0,0.00807262]
[1674072871681,1.37085469,20909.0,20907.0,0.22143182]
[1674072871967,1.46285469,20909.0,20907.0,0.22143182]
[1674072872252,0.801653,20909.0,20907.0,0.22143182]
[1674072873385,0.415391,20909.0,20907.0,0.22143182]
[1674072873673,0.415391,20909.0,20907.0,0.69972882]
[1674072873942,0.415391,20909.0,20908.0,0.13338538]
[1674072874217,0.092,20909.0,20908.0,0.21078538]
[1674072874494,0.092,20909.0,20908.0,0.56414038]
[1674072875570,0.062,20909.0,20908.0,0.56414038]
[1674072877608,0.062,20909.0,20908.0,1.04242538]
[1674072878305,0.062,20909.0,20908.0,1.547729]
[1674072878539,0.062,20909.0,20908.0,1.247729]
[1674072879030,0.01090942,20911.0,20908.0,1.247729]
[1674072879256,0.01090942,20911.0,20908.0,1.157541]
[1674072879508,0.003,20909.0,20908.0,1.158541]
[1674072879719,0.003,20909.0,20908.0,1.171327]
[1674072880671,0.01090942,20911.0,20908.0,1.170327]
[1674072880910,0.01390942,20911.0,20908.0,1.235741]
[1674072881146,0.01090942,20911.0,20908.0,1.234741]
[1674072881385,0.003,20909.0,20908.0,1.235741]
[1674072881642,0.01090942,20911.0,20908.0,1.234741]
[1674072881876,0.01390942,20911.0,20908.0,1.235741]
[1674072882139,0.01090942,20911.0,20908.0,1.234741]
[1674072883686,0.01090942,20911.0,20908.0,1.237741]
[1674072883687,0.06690942,20911.0,20908.0,1.237741]
[1674072883963,0.06284812,20912.0,20908.0,1.234741]
[1674072884238,0.056,20911.0,20908.0,0.95377697]
[1674072884515,0.056,20911.0,20908.0,0.682256]
[1674072885083,0.54106012,20912.0,20908.0,0.679256]
[1674072885369,0.59706012,20912.0,20908.0,0.87657697]
[1674072885642,0.11884812,20912.0,20908.0,1.35186197]
[1674072885917,0.11884812,20912.0,20908.0,1.35486197]
[1674072885918,0.056,20911.0,20908.0,1.35486197]
[1674072886239,0.056,20911.0,20908.0,1.160541]
[1674072886810,0.478187,20913.0,20908.0,1.157541]
[1674072887123,0.056,20912.0,20908.0,1.35486197]
[1674072887567,0.056,20912.0,20908.0,1.160541]
[1674072887569,0.056,20911.0,20908.0,0.685256]
[1674072887849,0.056,20911.0,20908.0,1.160541]
[1674072888135,0.19580165,20913.0,20908.0,1.157541]
[1674072888408,0.67398065,20913.0,20908.0,1.35186197]
[1674072888973,0.056,20911.0,20908.0,1.35486197]
[1674072889262,0.056,20911.0,20908.0,1.160541]
[1674072889828,0.67398065,20913.0,20908.0,1.157541]